fUSD/lending_fUSD_20240406
["ID","MTS","AMOUNT","RATE_DAILY","PERIOD"]
[321676126,1712380243443,-703.0793922,0.00023748,2]
[321676127,1712380243453,-50.6311766,0.00023863,2]
[321676128,1712380243467,-317.5888234,0.00023863,2]
[321676129,1712380243478,-410.74329322,0.00023903,2]
[321676130,1712380243543,-589.25670678,0.00023903,2]
[321676131,1712380243554,-152.83,0.0002404,2]
[321676132,1712380243564,-237.44,0.00024204,2]
[321676133,1712380243573,-1059.643,0.00024692,2]
[321676134,1712380243584,-250.19706463,0.00024795,2]
[321676135,1712380243593,-159.85649401,0.00024795,2]
[321676136,1712380243603,-1621.1848,0.00024795,2]
[321676137,1712380243614,-344.60766456,0.00024796,2]
[321676138,1712380243625,-500.0,0.00024799,2]
[321676139,1712380243634,-7500.0,0.000248,2]
[321676140,1712380243643,-159.85649398,0.00024808,2]
[321676141,1712380243654,-159.85649398,0.00024821,2]
[321676142,1712380243665,-159.85649398,0.00024834,2]
[321676143,1712380243679,-159.85649398,0.00024848,2]
[321676144,1712380243688,-159.85649398,0.00024861,2]
[321676145,1712380243698,-159.85649398,0.00024874,2]
[321676146,1712380243707,-159.85649398,0.00024887,2]
[321676147,1712380243716,-11502.99145216,0.00024889,2]
[321676148,1712380243732,-547.73598015,0.00024889,2]
[321676149,1712380243816,-3124.99957929,0.00024889,2]
[321676150,1712380243826,-687.15904679,0.00024889,2]
[321676165,1712380246439,-13612.9716,0.00024889,2]
[321676168,1712380246548,-3718.72438007,0.00024889,2]
[321676169,1712380246709,-990.28412128,0.00024889,2]
[321676170,1712380551312,8000.0,0.0002,2]
[321676175,1712381224131,1450.0,0.00021,3]
[321676241,1712381431828,-291.82859999,0.00021824,2]
[321676242,1712381431840,-310.11177363,0.00021824,2]
[321676243,1712381431850,-213.69,0.00021826,2]
[321676244,1712381431859,-21.49121637,0.00021924,2]
[321676245,1712381431871,-333.37689972,0.00021924,2]
[321676246,1712381431880,-115.07810028,0.00023,3]
[321676255,1712381437638,-1384.92189972,0.00023,3]
[321676256,1712381437648,-999.999999,0.00023732,2]
[321676257,1712381437657,-1000.0,0.00023744,2]
[321676258,1712381437667,-244.8,0.00023775,2]
[321676259,1712381437676,-152.83,0.00023953,2]
[321676260,1712381437686,-2864.885912,0.00024,2]
[321676261,1712381437885,-656.90000005,0.00024,2]
[321676321,1712381439757,-1326.83199311,0.00024,2]
[321676322,1712381439876,-355.07254926,0.00024,2]
[321676324,1712381442743,-3532.04959643,0.00024,2]
[321676325,1712381442756,-1092.59470012,0.00024,2]
[321676326,1712381442768,-49999.998375,0.00024,2]
[321676327,1712381442868,-357.86353034,0.00024,2]
[321676328,1712381442878,-213.69,0.0002409,2]
[321676329,1712381442887,-629.83340464,0.00024274,2]
[321676330,1712381442926,-234.16659536,0.00024274,2]
[321676331,1712381442935,-501.0,0.00024356,2]
[321676332,1712381442945,-190.96042449,0.00024592,2]
[321676343,1712381447476,-248.75227551,0.00024592,2]
[321676344,1712381447486,-162.42,0.00024639,2]
[321676345,1712381447495,-467.56659512,0.0002468,2]
[321676346,1712381447505,-128.06112937,0.0002468,2]
[321676347,1712381447518,-63.75276165,0.0002468,2]
[321676348,1712381447528,-150.0,0.000247,2]
[321676349,1712381447537,-41.24723835,0.000247,2]
[321676350,1712381447549,-108.75276165,0.000247,2]
[321676351,1712381447558,-429.46402797,0.00024704,2]
[321676352,1712381447570,-38.10256708,0.00024704,2]
[321676353,1712381447580,-191.81389102,0.00024711,2]
[321676354,1712381447590,-499.99,0.00024711,2]
[321676355,1712381447599,-467.56659505,0.00024729,2]
[321676356,1712381447608,-114.40242937,0.00024743,2]
[321676357,1712381447620,-77.41146165,0.00024743,2]
[321676358,1712381447630,-208.68633712,0.00024753,2]
[321676407,1712381749550,-600.0,0.00023838,2]
[321676434,1712382267138,3995.21515427,0.000239,8]
[321676435,1712382329382,150.0,0.00023999,10]
[321676440,1712382570677,5800.0,0.00018695,2]
[321676441,1712382593098,5800.0,0.00018686,2]
[321676442,1712382612786,318.7508899,0.00018695,2]
[321676443,1712382617221,5800.0,0.00018678,2]
[321676444,1712382630788,323.25195949,0.00018695,2]
[321676452,1712382631865,-155.0,0.00020835,2]
[321676453,1712382631874,-233.25489494,0.00020836,2]
[321676454,1712382631884,-500.0,0.00020837,2]
[321676455,1712382631893,-522.54042339,0.00020838,2]
[321676456,1712382631904,-155.0,0.00020839,2]
[321676457,1712382631913,-50.51886024,0.00020845,2]
[321676458,1712382631924,-190.01113976,0.00020845,2]
[321676459,1712382631933,-4318.05805404,0.00021881,2]
[321676460,1712382631942,-150.0,0.00021882,2]
[321676461,1712382631952,-150.0,0.00021882,2]
[321676462,1712382631962,-270.14135283,0.00021883,2]
[321676463,1712382631972,-362.858682,0.00021883,2]
[321676464,1712382632016,-753.66321503,0.00021883,2]
[321676465,1712382632029,-411.52500001,0.00021883,2]
[321676466,1712382632046,-833.50211302,0.00021883,2]
[321676467,1712382632058,-539.69020108,0.00021883,2]
[321676468,1712382632136,-2492.98633303,0.00021883,2]
[321676469,1712382632146,-240.50289803,0.00021884,2]
[321676470,1712382632156,-113.11887651,0.00021885,2]
[321676471,1712382632197,-37.87112349,0.00021885,2]
[321676472,1712382632207,-499.99,0.00021885,2]
[321676473,1712382632216,-2817.11884273,0.00021887,2]
[321676474,1712382632224,-55.42776552,0.00022716,2]
[321676475,1712382632235,-106.75223448,0.00022716,2]
[321676476,1712382632244,-800.0,0.0002299,2]
[321676477,1712382632253,-240.53,0.00023109,2]
[321676478,1712382632262,-169.09,0.00023404,2]
[321676479,1712382632273,-1000.0,0.00023699,2]
[321676480,1712382632284,-706.56097054,0.00023699,2]
[321676481,1712382632296,-542.95172946,0.00023699,2]
[321676482,1712382632306,-426.50479591,0.000237,2]
[321676483,1712382632316,-857.37353026,0.000237,2]
[321676484,1712382632326,-2510.5573489,0.000237,2]
[321676485,1712382632338,-143.08740266,0.000237,2]
[321676486,1712382632347,-776.23575537,0.00023729,2]
[321676490,1712382637743,-155.0,0.00020834,2]
[321676491,1712382637753,-155.0,0.00020835,2]
[321676492,1712382637763,-507.64257077,0.00023729,2]
[321676493,1712382637773,-416.24684469,0.00023757,2]
[321676494,1712382637851,-867.63148145,0.00023757,2]
[321676495,1712382637861,-1283.87832614,0.00023786,2]
[321676496,1712382637870,-214.74817949,0.0002379,2]
[321676497,1712382637880,-155.0,0.00023797,2]
[321676498,1712382637889,-200.0,0.00023798,2]
[321676499,1712382637900,-500.0,0.00023798,2]
[321676500,1712382637910,-459.69655435,0.00023798,2]
[321676501,1712382637919,-45826.91585857,0.00023799,2]
[321676502,1712382638014,-482014.05719637,0.00023799,2]
[321676503,1712382638024,-163.0722,0.000238,2]
[321676504,1712382638034,-2500.0,0.000238,2]
[321676505,1712382638043,-194847.0194,0.000238,2]
[321676506,1712382638054,-9674.1885,0.000238,2]
[321676507,1712382638063,-27139.0574,0.000238,2]
[321676508,1712382638073,-1058.7341,0.000238,2]
[321676509,1712382638083,-91641.2077,0.000238,2]
[321676510,1712382638092,-1283.87832614,0.00023814,2]
[321676511,1712382638102,-2653.64475153,0.00023831,2]
[321676512,1712382638112,-1186.63079143,0.00023839,2]
[321676513,1712382638123,-1004.36929448,0.0002384,2]
[321676515,1712382638132,-1283.87832614,0.00023843,2]
[321676517,1712382638141,-1283.87832614,0.00023871,2]
[321676519,1712382638151,-208.24,0.0002389,3]
[321676521,1712382638160,-624.72,0.0002389,3]
[321676523,1712382638170,-500.0,0.000239,2]
[321676525,1712382638179,-24175.3151,0.000239,2]
[321676527,1712382638188,-167.8428,0.000239,2]
[321676529,1712382638197,-100000.0,0.000239,2]
[321676531,1712382638207,-312.00112333,0.000239,2]
[321676533,1712382638216,-1000.0,0.000239,2]
[321676535,1712382638224,-1000.0,0.000239,2]
[321676537,1712382638233,-7500.0,0.000239,2]
[321676539,1712382638243,-159.30049202,0.000239,2]
[321676542,1712382638252,-1283.87832614,0.000239,2]
[321676544,1712382638262,-1254.35585778,0.000239,2]
[321676546,1712382638272,-801.49994201,0.000239,2]
[321676548,1712382638282,-6213.18862352,0.000239,2]
[321676550,1712382638291,-4784.69068409,0.000239,2]
[321676552,1712382638300,-333.040614,0.00023906,2]
[321676554,1712382638309,-333.040614,0.00023906,2]
[321676555,1712382638318,-333.040614,0.00023906,2]
[321676557,1712382638328,-333.040614,0.00023906,2]
[321676559,1712382638337,-333.040614,0.00023906,2]
[321676561,1712382638346,-2653.64475153,0.00023963,2]
[321676563,1712382638355,-3000.0,0.00023974,2]
[321676565,1712382638365,-301.88070953,0.00023986,2]
[321676568,1712382638374,-909.69808574,0.00023998,2]
[321676570,1712382638384,-155.31508233,0.00023998,2]
[321676572,1712382638393,-325.15750023,0.00023998,2]
[321676574,1712382638403,-200.0,0.00023998,2]
[321676576,1712382638413,-377.22413636,0.00023998,2]
[321676578,1712382638421,-343.64377114,0.00023998,2]
[321676580,1712382638430,-206.78856587,0.00023998,2]
[321676582,1712382638439,-155.10736676,0.00023998,2]
[321676584,1712382638448,-309.24848067,0.00023998,2]
[321676586,1712382638457,-1844.57475153,0.00023998,2]
[321676588,1712382638467,-785.6931654,0.00023998,2]
[321676590,1712382638476,-1000.0,0.00023999,2]
[321676592,1712382638485,-444.98588362,0.00023999,2]
[321676594,1712382638494,-310.47026813,0.00023999,2]
[321676596,1712382638504,-843.86390582,0.00023999,2]
[321676615,1712382638678,-7945173.12343515,0.00024,2]
[321676616,1712382639045,-2447648.87656485,0.00024,2]
[321676617,1712382639055,-1120.4,0.00024,2]
[321676618,1712382639064,-649.56,0.00024,2]
[321676619,1712382639073,-178.7499095,0.00024053,2]
[321676620,1712382639082,-210.0,0.00024071,2]
[321676621,1712382639091,-205.27,0.00024086,2]
[321676622,1712382639100,-2653.64475153,0.00024094,2]
[321676623,1712382639109,-150.098359,0.0002411,2]
[321676624,1712382639118,-150.0,0.00024199,10]
[321676625,1712382639127,-88768.84635584,0.000242,2]
[321676626,1712382639137,-2653.64475153,0.00024225,2]
[321676627,1712382639146,-4784.69068409,0.00024229,2]
[321676628,1712382639155,-178.7499095,0.00024265,2]
[321676629,1712382639165,-150.0,0.00024277,2]
[321676630,1712382639174,-1254.35585776,0.0002428,2]
[321676631,1712382639187,-801.49994201,0.0002428,2]
[321676632,1712382639196,-150.0,0.00024311,2]
[321676633,1712382639205,-150.0,0.00024355,2]
[321676634,1712382639214,-2653.64475153,0.00024357,2]
[321676635,1712382639223,-150.0,0.00024368,2]
[321676636,1712382639232,-150.0,0.00024372,2]
[321676637,1712382639241,-150.0,0.00024391,2]
[321676638,1712382639250,-159.30049202,0.000244,2]
[321676639,1712382639260,-150.0,0.00024413,2]
[321676640,1712382639269,-150.0,0.00024424,2]
[321676641,1712382639278,-150.0,0.00024427,2]
[321676642,1712382639287,-150.0,0.00024432,2]
[321676643,1712382639296,-150.0,0.00024442,2]
[321676644,1712382639306,-1500.0,0.00024442,2]
[321676645,1712382639315,-150.0,0.00024454,2]
[321676646,1712382639325,-6000.0,0.00024463,7]
[321676647,1712382639333,-150.0,0.00024466,2]
[321676648,1712382639343,-150.0,0.00024473,2]
[321676649,1712382639353,-178.7499095,0.00024477,2]
[321676650,1712382639362,-150.0,0.00024487,2]
[321676651,1712382639371,-2653.64475153,0.00024488,2]
[321676652,1712382639380,-150.0,0.00024488,2]
[321676653,1712382639390,-150.0,0.00024498,2]
[321676654,1712382639399,-12550.00176957,0.000245,2]
[321676655,1712382639408,-280.67588426,0.000245,2]
[321676656,1712382639419,-150.0,0.00024502,2]
[321676657,1712382639428,-3818.39649449,0.0002451,2]
[321676658,1712382639438,-1717.75738,0.0002451,2]
[321676659,1712382639447,-150.0,0.00024518,2]
[321676660,1712382639456,-150.0,0.00024527,2]
[321676661,1712382639465,-150.0,0.00024538,2]
[321676662,1712382639475,-150.0,0.00024548,2]
[321676663,1712382639485,-4784.69068409,0.00024557,2]
[321676664,1712382639495,-150.0,0.00024559,2]
[321676665,1712382639505,-150.0,0.00024569,2]
[321676666,1712382639515,-150.0,0.00024572,2]
[321676667,1712382639530,-150.0,0.00024585,2]
[321676668,1712382639540,-150.0,0.00024616,2]
[321676669,1712382639550,-150.0,0.00024619,2]
[321676670,1712382639563,-2653.64475153,0.00024619,2]
[321676671,1712382639573,-150.0,0.00024624,2]
[321676672,1712382639584,-150.0,0.00024635,2]
[321676673,1712382639594,-183.4672918,0.00024645,10]
[321676674,1712382639603,-48913.7814,0.00024646,2]
[321676675,1712382639614,-122126.7348,0.00024646,2]
[321676676,1712382639625,-1061.5679,0.00024646,2]
[321676677,1712382639635,-833.0,0.00024657,2]
[321676678,1712382639645,-501.0,0.00024657,2]
[321676679,1712382639655,-504.94822144,0.00024657,2]
[321676680,1712382639674,-516.15589958,0.00024657,2]
[321676681,1712382639684,-500.0,0.00024657,2]
[321676682,1712382639694,-457.90850375,0.00024657,2]
[321676683,1712382639706,-500.0,0.00024657,2]
[321676684,1712382639716,-369.9,0.00024657,2]
[321676685,1712382639726,-641.46693765,0.00024657,2]
[321676686,1712382639751,-500.0,0.00024657,2]
[321676687,1712382639767,-521.73654292,0.00024657,2]
[321676688,1712382639783,-500.0,0.00024657,2]
[321676689,1712382639796,-500.0,0.00024657,2]
[321676690,1712382639808,-508.99473054,0.00024657,2]
[321676691,1712382639823,-500.0,0.00024657,2]
[321676692,1712382639837,-503.36628555,0.00024657,2]
[321676693,1712382639852,-500.0,0.00024657,2]
[321676694,1712382639866,-524.29278363,0.00024657,2]
[321676695,1712382639880,-317.39158975,0.00024657,2]
[321676696,1712382639892,-523.74113633,0.00024657,2]
[321676697,1712382639903,-509.76118055,0.00024657,2]
[321676698,1712382639920,-518.35351566,0.00024657,2]
[321676699,1712382639932,-2503.65,0.00024657,2]
[321676700,1712382639944,-517.59481635,0.00024657,2]
[321676701,1712382639957,-2503.65,0.00024657,2]
[321676702,1712382639971,-2503.65,0.00024657,2]
[321676703,1712382639984,-2503.65,0.00024657,2]
[321676704,1712382639995,-2503.65,0.00024657,2]
[321676705,1712382640010,-514.72348295,0.00024657,2]
[321676706,1712382640025,-2503.65,0.00024657,2]
[321676707,1712382640042,-2503.65,0.00024657,2]
[321676708,1712382640060,-2503.65,0.00024657,2]
[321676709,1712382640082,-2503.65,0.00024657,2]
[321676710,1712382640097,-2503.65,0.00024657,2]
[321676711,1712382640112,-2503.65,0.00024657,2]
[321676712,1712382640125,-2503.65,0.00024657,2]
[321676713,1712382640138,-2503.65,0.00024657,2]
[321676714,1712382640154,-2503.65,0.00024657,2]
[321676715,1712382640173,-500.38550192,0.00024657,2]
[321676716,1712382640187,-2503.65,0.00024657,2]
[321676717,1712382640200,-2503.65,0.00024657,2]
[321676718,1712382640212,-2503.65,0.00024657,2]
[321676719,1712382640222,-2503.65,0.00024657,2]
[321676720,1712382640233,-2503.65,0.00024657,2]
[321676721,1712382640246,-2503.65,0.00024657,2]
[321676722,1712382640259,-500.0,0.00024657,2]
[321676723,1712382640271,-2503.65,0.00024657,2]
[321676724,1712382640285,-517.24692788,0.00024657,2]
[321676725,1712382640298,-2503.65,0.00024657,2]
[321676726,1712382640310,-2503.65,0.00024657,2]
[321676727,1712382640321,-2503.86200845,0.00024657,2]
[321676728,1712382640332,-500.0,0.00024657,2]
[321676729,1712382640346,-520.7391056,0.00024657,2]
[321676730,1712382640359,-571.78,0.00024657,2]
[321676731,1712382640379,-571.78,0.00024657,2]
[321676732,1712382640391,-571.78,0.00024657,2]
[321676733,1712382640405,-571.78,0.00024657,2]
[321676734,1712382640420,-571.78,0.00024657,2]
[321676735,1712382640432,-571.78,0.00024657,2]
[321676736,1712382640445,-571.78,0.00024657,2]
[321676737,1712382640457,-571.78,0.00024657,2]
[321676738,1712382640470,-571.78,0.00024657,2]
[321676739,1712382640484,-571.78,0.00024657,2]
[321676740,1712382640495,-571.78,0.00024657,2]
[321676741,1712382640509,-571.78,0.00024657,2]
[321676742,1712382640527,-500.0,0.00024657,2]
[321676743,1712382640539,-571.78,0.00024657,2]
[321676744,1712382640551,-522.16210768,0.00024657,2]
[321676745,1712382640564,-500.0,0.00024657,2]
[321676746,1712382640575,-571.78,0.00024657,2]
[321676747,1712382640587,-571.78,0.00024657,2]
[321676748,1712382640601,-500.0,0.00024657,2]
[321676749,1712382640613,-571.78,0.00024657,2]
[321676750,1712382640624,-462.67896557,0.00024657,2]
[321676751,1712382640637,-571.78,0.00024657,2]
[321676752,1712382640649,-571.78,0.00024657,2]
[321676753,1712382640662,-571.78,0.00024657,2]
[321676754,1712382640673,-571.78,0.00024657,2]
[321676755,1712382640686,-571.78,0.00024657,2]
[321676756,1712382640700,-571.78,0.00024657,2]
[321676757,1712382640712,-500.0,0.00024657,2]
[321676758,1712382640724,-571.78,0.00024657,2]
[321676759,1712382640735,-500.0,0.00024657,2]
[321676760,1712382640747,-571.96275664,0.00024657,2]
[321676761,1712382640758,-500.0,0.00024657,2]
[321676762,1712382640771,-630.47082429,0.00024657,2]
[321676763,1712382640783,-500.0,0.00024657,2]
[321676764,1712382640795,-500.0,0.00024657,2]
[321676765,1712382640806,-500.0,0.00024657,2]
[321676766,1712382640817,-527.11433428,0.00024657,2]
[321676767,1712382640829,-278.70406176,0.00024657,2]
[321676768,1712382640842,-500.0,0.00024657,2]
[321676769,1712382640854,-553.08617252,0.00024657,2]
[321676770,1712382640866,-500.0,0.00024657,2]
[321676771,1712382640877,-517.48757604,0.00024657,2]
[321676772,1712382640890,-544.48881619,0.00024657,2]
[321676773,1712382640901,-500.0,0.00024657,2]
[321676774,1712382640913,-511.45474773,0.00024657,2]
[321676775,1712382640925,-509.56542131,0.00024657,2]
[321676776,1712382640938,-500.0,0.00024657,2]
[321676777,1712382640950,-503.09399385,0.00024657,2]
[321676778,1712382640963,-500.0,0.00024657,2]
[321676779,1712382640973,-520.00170031,0.00024657,2]
[321676780,1712382640986,-500.0,0.00024657,2]
[321676781,1712382640997,-500.0,0.00024657,2]
[321676782,1712382641008,-500.0,0.00024657,2]
[321676783,1712382641020,-522.71687581,0.00024657,2]
[321676784,1712382641031,-489.03452335,0.00024657,2]
[321676785,1712382641043,-500.0,0.00024657,2]
[321676786,1712382641055,-517.43124507,0.00024657,2]
[321676787,1712382641068,-500.0,0.00024657,2]
[321676788,1712382641079,-517.27995016,0.00024657,2]
[321676789,1712382641090,-516.72176236,0.00024657,2]
[321676790,1712382641102,-517.99796269,0.00024657,2]
[321676791,1712382641113,-500.0,0.00024657,2]
[321676792,1712382641125,-500.0,0.00024657,2]
[321676793,1712382641136,-500.0,0.00024657,2]
[321676794,1712382641147,-500.0,0.00024657,2]
[321676795,1712382641158,-500.0,0.00024657,2]
[321676796,1712382641170,-368.9390475,0.00024657,2]
[321676797,1712382641181,-500.0,0.00024657,2]
[321676798,1712382641192,-520.33949254,0.00024657,2]
[321676799,1712382641204,-503.94050714,0.00024657,2]
[321676800,1712382641215,-500.0,0.00024657,2]
[321676801,1712382641226,-504.71899798,0.00024657,2]
[321676802,1712382641238,-501.78447301,0.00024657,2]
[321676803,1712382641249,-500.0,0.00024657,2]
[321676804,1712382641260,-500.0,0.00024657,2]
[321676805,1712382641271,-532.77509393,0.00024657,2]
[321676806,1712382641282,-500.0,0.00024657,2]
[321676807,1712382641293,-500.0,0.00024657,2]
[321676808,1712382641304,-500.0,0.00024657,2]
[321676809,1712382641315,-500.0,0.00024657,2]
[321676810,1712382641327,-500.0,0.00024657,2]
[321676811,1712382641337,-500.0,0.00024657,2]
[321676812,1712382641348,-517.42179136,0.00024657,2]
[321676813,1712382641361,-500.0,0.00024657,2]
[321676814,1712382641372,-568.60294991,0.00024657,2]
[321676815,1712382641384,-500.0,0.00024657,2]
[321676816,1712382641395,-500.0,0.00024657,2]
[321676817,1712382641408,-500.0,0.00024657,2]
[321676818,1712382641422,-500.0,0.00024657,2]
[321676819,1712382641435,-529.22680501,0.00024657,2]
[321676820,1712382641447,-500.0,0.00024657,2]
[321676821,1712382641459,-500.0,0.00024657,2]
[321676822,1712382641472,-500.0,0.00024657,2]
[321676823,1712382641727,-500.0,0.00024657,2]
[321676824,1712382641737,-199.6106364,0.00024657,2]
[321676825,1712382641747,-500.0,0.00024657,2]
[321676826,1712382641756,-514.8918676,0.00024657,2]
[321676827,1712382641766,-500.0,0.00024657,2]
[321676828,1712382641775,-509.27364381,0.00024657,2]
[321676829,1712382641785,-500.0,0.00024657,2]
[321676830,1712382641795,-575.00955496,0.00024657,2]
[321676831,1712382641805,-520.14915955,0.00024657,2]
[321676832,1712382641814,-500.0,0.00024657,2]
[321676833,1712382641824,-500.0,0.00024657,2]
[321676834,1712382641833,-500.0,0.00024657,2]
[321676835,1712382641842,-500.0,0.00024657,2]
[321676836,1712382641851,-513.79646358,0.00024657,2]
[321676837,1712382641861,-500.0,0.00024657,2]
[321676838,1712382641869,-500.0,0.00024657,2]
[321676839,1712382641879,-500.0,0.00024657,2]
[321676840,1712382641888,-529.91564512,0.00024657,2]
[321676841,1712382641898,-500.0,0.00024657,2]
[321676842,1712382641907,-548.12817771,0.00024657,2]
[321676843,1712382641917,-500.0,0.00024657,2]
[321676844,1712382641926,-500.0,0.00024657,2]
[321676845,1712382641935,-500.0,0.00024657,2]
[321676846,1712382641944,-587.19442892,0.00024657,2]
[321676847,1712382641954,-500.0,0.00024657,2]
[321676848,1712382641963,-500.0,0.00024657,2]
[321676849,1712382641971,-500.0,0.00024657,2]
[321676850,1712382641981,-500.0,0.00024657,2]
[321676851,1712382641991,-500.0,0.00024657,2]
[321676852,1712382642000,-500.0,0.00024657,2]
[321676853,1712382642009,-500.0,0.00024657,2]
[321676854,1712382642018,-193.40622743,0.00024657,2]
[321676855,1712382642027,-500.0,0.00024657,2]
[321676856,1712382642037,-529.66840473,0.00024657,2]
[321676857,1712382642046,-505.22632664,0.00024657,2]
[321676858,1712382642055,-500.0,0.00024657,2]
[321676859,1712382642064,-500.0,0.00024657,2]
[321676860,1712382642073,-500.0,0.00024657,2]
[321676861,1712382642082,-542.91403577,0.00024657,2]
[321676862,1712382642093,-500.0,0.00024657,2]
[321676863,1712382642102,-500.0,0.00024657,2]
[321676864,1712382642111,-584.70991094,0.00024657,2]
[321676865,1712382642120,-500.0,0.00024657,2]
[321676866,1712382642130,-518.6289619,0.00024657,2]
[321676867,1712382642140,-500.0,0.00024657,2]
[321676868,1712382642149,-514.88112253,0.00024657,2]
[321676869,1712382642159,-500.0,0.00024657,2]
[321676870,1712382642169,-500.0,0.00024657,2]
[321676871,1712382642178,-500.0,0.00024657,2]
[321676872,1712382642187,-267.30793522,0.00024657,2]
[321676873,1712382642195,-500.0,0.00024657,2]
[321676874,1712382642205,-1338.87,0.00024657,2]
[321676875,1712382642215,-511.49819445,0.00024657,2]
[321676876,1712382642225,-500.0,0.00024657,2]
[321676877,1712382642234,-1338.87,0.00024657,2]
[321676878,1712382642244,-500.0,0.00024657,2]
[321676879,1712382642254,-1338.87,0.00024657,2]
[321676880,1712382642263,-163.67817763,0.00024657,2]
[321676881,1712382642272,-1338.87,0.00024657,2]
[321676882,1712382642282,-1338.87,0.00024657,2]
[321676883,1712382642291,-500.0,0.00024657,2]
[321676884,1712382642300,-1338.87,0.00024657,2]
[321676885,1712382642309,-500.0,0.00024657,2]
[321676886,1712382642318,-1338.87,0.00024657,2]
[321676887,1712382642327,-500.0,0.00024657,2]
[321676888,1712382642336,-500.0,0.00024657,2]
[321676889,1712382642345,-1338.87,0.00024657,2]
[321676890,1712382642354,-500.0,0.00024657,2]
[321676891,1712382642363,-522.73328177,0.00024657,2]
[321676892,1712382642372,-500.0,0.00024657,2]
[321676893,1712382642381,-500.0,0.00024657,2]
[321676894,1712382642390,-500.0,0.00024657,2]
[321676895,1712382642399,-1338.87,0.00024657,2]
[321676896,1712382642408,-526.64660664,0.00024657,2]
[321676897,1712382642418,-500.0,0.00024657,2]
[321676898,1712382642427,-500.0,0.00024657,2]
[321676899,1712382642436,-1338.87,0.00024657,2]
[321676900,1712382642445,-500.0,0.00024657,2]
[321676901,1712382642455,-517.80737341,0.00024657,2]
[321676902,1712382642465,-1338.87,0.00024657,2]
[321676903,1712382642475,-530.46421856,0.00024657,2]
[321676904,1712382642486,-500.0,0.00024657,2]
[321676905,1712382642495,-1338.87,0.00024657,2]
[321676906,1712382642505,-500.0,0.00024657,2]
[321676907,1712382642514,-1338.87,0.00024657,2]
[321676908,1712382642526,-500.0,0.00024657,2]
[321676909,1712382642538,-1338.87,0.00024657,2]
[321676910,1712382642547,-500.0,0.00024657,2]
[321676911,1712382642557,-1338.87,0.00024657,2]
[321676912,1712382642566,-500.0,0.00024657,2]
[321676913,1712382642576,-1338.87,0.00024657,2]
[321676914,1712382642586,-500.0,0.00024657,2]
[321676915,1712382642596,-1338.87,0.00024657,2]
[321676916,1712382642606,-500.0,0.00024657,2]
[321676917,1712382642615,-1338.87,0.00024657,2]
[321676918,1712382642624,-500.0,0.00024657,2]
[321676919,1712382642633,-500.0,0.00024657,2]
[321676920,1712382642642,-500.0,0.00024657,2]
[321676922,1712382642651,-1338.87,0.00024657,2]
[321676923,1712382642661,-518.9960492,0.00024657,2]
[321676924,1712382642671,-500.0,0.00024657,2]
[321676925,1712382642680,-1338.87,0.00024657,2]
[321676926,1712382642690,-1338.87,0.00024657,2]
[321676927,1712382642701,-404.23730206,0.00024657,2]
[321676929,1712382642710,-500.0,0.00024657,2]
[321676931,1712382642720,-1338.87,0.00024657,2]
[321676932,1712382642729,-588.80476841,0.00024657,2]
[321676933,1712382642739,-1338.87,0.00024657,2]
[321676934,1712382642748,-556.8171108,0.00024657,2]
[321676935,1712382642758,-1339.0219483,0.00024657,2]
[321676936,1712382642768,-500.0,0.00024657,2]
[321676937,1712382642779,-500.0,0.00024657,2]
[321676938,1712382642789,-392.10918945,0.00024657,2]
[321676940,1712382642799,-633.5,0.00024657,2]